bitfinex-derivatives/quotes_BTCF0:USTF0_20251214
["timestamp","ask_amount","ask_price","bid_price","bid_amount"]
[1765671153348,0.05976504,90243.0,90242.0,0.07355]
[1765671154361,0.05976504,90244.0,90243.0,0.0676891]
[1765671156352,0.05976504,90245.0,90243.0,0.0676891]
[1765671156657,0.05976504,90245.0,90244.0,0.06235]
[1765671157857,0.00016628,90252.0,90251.0,0.05661]
[1765671158059,0.00016628,90252.0,90251.0,0.4284882]
[1765671159754,0.00116628,90252.0,90251.0,0.4284882]
[1765671160465,0.00016628,90252.0,90251.0,0.4284882]
[1765671160863,0.00016628,90252.0,90251.0,0.4294882]
[1765671161766,0.00016628,90252.0,90251.0,0.0686882]
[1765671161965,0.00016628,90252.0,90251.0,0.4294882]
[1765671168767,0.00016628,90252.0,90251.0,0.0686882]
[1765671168969,0.00016628,90252.0,90251.0,0.4294882]
[1765671170769,0.00016628,90252.0,90251.0,0.0686882]
[1765671170969,0.00016628,90252.0,90251.0,0.4294882]
[1765671176466,0.00016628,90252.0,90251.0,0.0686882]
[1765671176665,0.00016628,90252.0,90251.0,0.4294882]
[1765671178482,0.05990482,90252.0,90251.0,0.4294882]
[1765671181388,0.00016628,90252.0,90251.0,0.4294882]
[1765671181587,0.05993306,90252.0,90251.0,0.4294882]
[1765671181982,0.13487138,90268.0,90267.0,0.05708]
[1765671182180,0.02747,90268.0,90267.0,0.41788]
[1765671182381,0.10711138,90270.0,90269.0,0.05708]
[1765671182581,0.13487138,90270.0,90269.0,0.05708]
[1765671182981,0.10711138,90270.0,90269.0,0.05708]
[1765671183587,0.10911138,90270.0,90269.0,0.05708]
[1765671184084,0.13687138,90270.0,90269.0,0.05708]
[1765671184288,0.002,90270.0,90269.0,0.05708]
[1765671185086,0.001,90270.0,90269.0,0.05708]
[1765671185286,0.003,90270.0,90269.0,0.05708]
[1765671186987,0.003,90270.0,90269.0,0.41788]
[1765671192698,0.003,90270.0,90269.0,0.05708]
[1765671192995,0.003,90270.0,90269.0,0.41788]
[1765671194392,0.03047,90270.0,90269.0,0.41788]
[1765671194790,0.05823,90270.0,90269.0,0.41788]
[1765671198300,0.003,90270.0,90269.0,0.41788]
[1765671199799,0.03047,90270.0,90269.0,0.41788]
[1765671199989,0.05823,90270.0,90269.0,0.41788]
[1765671200598,0.03047,90270.0,90269.0,0.41788]
[1765671202800,0.05823,90270.0,90269.0,1.10984]
[1765671205500,0.11791331,90270.0,90269.0,1.10984]
[1765671207310,0.05823,90270.0,90269.0,1.10984]
[1765671208208,0.11796217,90270.0,90269.0,1.10984]
[1765671208403,0.05823,90270.0,90269.0,1.10984]
[1765671209510,0.003,90270.0,90269.0,1.10984]
[1765671212501,0.003,90270.0,90269.0,1.16307829]
[1765671212899,0.003,90270.0,90269.0,1.10984]
[1765671217312,0.06017,90270.0,90269.0,1.10984]
[1765671217618,0.07779,90270.0,90269.0,1.10984]
[1765671217811,0.07779,90270.0,90269.0,0.41788]
[1765671218005,0.07779,90270.0,90269.0,1.1098]
[1765671219718,0.07779,90270.0,90269.0,0.749]
[1765671232822,0.06017,90270.0,90269.0,0.749]
[1765671244628,0.003,90270.0,90269.0,0.749]
[1765671249233,0.07411257,90273.0,90269.0,0.749]
[1765671249431,0.09953107,90294.0,90293.0,0.067353]
[1765671249638,0.09953107,90302.0,90294.0,0.07044]
[1765671249936,0.37769,90304.0,90294.0,0.07044]
[1765671250533,0.37785619,90304.0,90294.0,0.07044]
[1765671252227,0.02905752,90295.0,90294.0,0.05628]
[1765671253434,0.00063752,90295.0,90294.0,0.05628]
[1765671255039,0.00063752,90295.0,90294.0,0.05728]
[1765671266141,0.05891752,90295.0,90294.0,0.05728]
[1765671267651,0.41971752,90295.0,90294.0,0.001]
[1765671268035,0.07478,90294.0,90293.0,0.011073]
[1765671269342,0.07578,90294.0,90293.0,0.011073]
[1765671271453,0.07578,90294.0,90293.0,0.040193]
[1765671273340,0.07578,90294.0,90293.0,0.067643]
[1765671273547,0.001,90294.0,90293.0,0.428443]
[1765671274953,0.0146579,90301.0,90300.0,0.02202]
[1765671275153,0.07947879,90321.0,90320.0,0.0217]
[1765671275347,0.07478,90324.0,90323.0,0.0217]
[1765671275950,0.07478,90324.0,90313.0,0.0110705]
[1765671275951,0.07478,90305.0,90304.0,0.0749559]
[1765671276257,0.04596,90305.0,90304.0,0.0327716]
[1765671276660,0.07478,90305.0,90304.0,0.0327716]
[1765671277652,0.07478,90305.0,90304.0,0.0337716]
[1765671278456,0.07478,90305.0,90304.0,0.0357716]
[1765671279256,0.01749,90305.0,90304.0,0.0347716]
[1765671279450,0.01749,90310.0,90309.0,0.032771]
[1765671279758,0.04596,90310.0,90309.0,0.393571]
[1765671280556,0.01749,90310.0,90309.0,0.393571]
[1765671281764,0.04596,90310.0,90309.0,0.393571]
[1765671283253,0.01749,90310.0,90309.0,0.393571]
[1765671283459,0.04596,90310.0,90309.0,0.393571]
[1765671284652,0.01749,90310.0,90309.0,0.393571]
[1765671284848,0.04596,90310.0,90309.0,0.393571]
[1765671285565,0.01749,90310.0,90309.0,0.393571]
[1765671285771,0.02858009,90314.0,90313.0,0.0327705]
[1765671286065,0.05740009,90314.0,90313.0,0.0327705]
[1765671286450,0.00011009,90314.0,90313.0,0.0327705]
[1765671289065,0.37829,90324.0,90323.0,0.0327693]
[1765671289066,0.01749,90324.0,90323.0,0.0327693]
[1765671289265,0.04596,90324.0,90323.0,0.0327693]
[1765671289466,0.07478,90324.0,90323.0,0.0327693]
[1765671291350,0.01749,90324.0,90323.0,0.0327693]
[1765671291651,0.04596,90324.0,90323.0,0.0327693]
[1765671291850,0.07478,90324.0,90323.0,0.0327693]
[1765671292868,0.01749,90324.0,90323.0,0.0327693]
[1765671293068,0.07478,90324.0,90323.0,0.0327693]
[1765671302290,0.13432973,90324.0,90323.0,0.0327693]
[1765671303392,0.07478,90324.0,90323.0,0.0327693]
[1765671304788,0.01714,90321.0,90319.0,0.0219197]
[1765671304990,0.05556,90320.0,90319.0,0.0219197]
[1765671306386,0.05556,90320.0,90319.0,0.0110697]
[1765671307100,0.0727,90316.0,90315.0,0.0110702]
[1765671307398,0.13243494,90316.0,90315.0,0.0110702]
[1765671308201,0.05556,90311.0,90310.0,0.3608]
[1765671308592,0.11529931,90311.0,90310.0,0.3608]
[1765671309397,0.11529931,90311.0,90310.0,0.3718709]
[1765671310300,0.05556,90311.0,90310.0,0.3718709]
[1765671311899,0.05556,90311.0,90310.0,0.0110709]
[1765671312692,0.05556,90311.0,90310.0,0.0552309]
[1765671312895,0.05556,90311.0,90310.0,0.4160309]
[1765671313384,0.11528372,90311.0,90310.0,0.4160309]
[1765671318391,0.05556,90311.0,90310.0,0.4160309]
[1765671324507,0.11528372,90311.0,90310.0,0.4160309]
[1765671325494,0.05556,90311.0,90310.0,0.4160309]
[1765671326204,0.11528372,90311.0,90310.0,0.4160309]
[1765671331310,0.05556,90311.0,90310.0,0.4160309]
[1765671340719,0.05556,90311.0,90310.0,0.0552309]
[1765671340903,0.05556,90311.0,90310.0,0.4160309]
[1765671341516,0.05556,90311.0,90310.0,0.0552309]
[1765671341814,0.05556,90311.0,90310.0,0.4160309]
[1765671348521,0.05556,90311.0,90310.0,0.0552309]
[1765671348711,0.05556,90311.0,90310.0,0.4160309]
[1765671379540,0.01714,90312.0,90311.0,0.04416]
[1765671379942,0.04478,90312.0,90311.0,0.04416]
[1765671380748,0.07381,90312.0,90311.0,0.04416]
[1765671384743,0.04478,90312.0,90311.0,0.04416]
[1765671385544,0.07327,90312.0,90311.0,0.04416]
[1765671391556,0.01714,90312.0,90311.0,0.04416]
[1765671392651,0.09661879,90318.0,90317.0,0.04416]
[1765671392957,0.00016609,90320.0,90319.0,0.04416]
[1765671393658,0.05993801,90320.0,90319.0,0.04416]
[1765671394252,0.00016609,90320.0,90319.0,0.04416]
[1765671397159,0.00016609,90320.0,90319.0,0.40496]
[1765671408961,9e-08,90320.0,90319.0,0.40496]
[1765671410253,9e-08,90320.0,90319.0,0.52386]
[1765671410458,0.02907009,90320.0,90319.0,0.52386]
[1765671410662,9e-08,90320.0,90319.0,0.4797]
[1765671410863,9e-08,90320.0,90319.0,0.50923539]
[1765671412451,9e-08,90320.0,90319.0,0.51023539]
[1765671413354,9e-08,90320.0,90319.0,0.39133539]
[1765671420777,9e-08,90320.0,90319.0,1.08269539]
[1765671421970,9e-08,90320.0,90319.0,1.08169539]
[1765671422268,9e-08,90320.0,90319.0,1.11456231]
[1765671422572,9e-08,90320.0,90319.0,1.08469539]
[1765671423768,0.04447009,90320.0,90319.0,1.08469539]
[1765671423968,0.07232009,90320.0,90319.0,1.08469539]
[1765671424169,0.04447009,90320.0,90319.0,1.08469539]
[1765671424366,0.01707009,90320.0,90319.0,1.08469539]
[1765671424568,0.07232009,90320.0,90319.0,1.08469539]
[1765671424769,0.04447009,90320.0,90319.0,1.08469539]
[1765671424964,0.07232009,90320.0,90319.0,0.39333539]
[1765671425364,0.07232009,90320.0,90319.0,0.03253539]
[1765671425563,0.07232009,90320.0,90319.0,0.003]
[1765671427079,0.07232009,90320.0,90319.0,0.02508]
[1765671427478,0.07232009,90320.0,90319.0,0.04716]
[1765671429369,0.07232009,90320.0,90319.0,0.40796]
[1765671438783,0.07232009,90320.0,90319.0,0.04716]
[1765671438982,0.07232009,90320.0,90319.0,0.40796]
[1765671441990,0.01707009,90320.0,90319.0,0.40796]
[1765671442388,0.04447009,90320.0,90319.0,0.40796]
[1765671443287,0.01707009,90320.0,90319.0,0.40796]
[1765671444194,0.07449009,90320.0,90319.0,0.40796]
[1765671445296,0.07449009,90320.0,90319.0,0.43802957]
[1765671445894,0.07449009,90320.0,90319.0,0.40796]
[1765671446994,0.01707009,90320.0,90319.0,0.40796]
[1765671447493,0.04555009,90320.0,90319.0,0.40796]
[1765671447796,0.07328009,90320.0,90319.0,0.43803338]
[1765671447996,0.01707009,90320.0,90319.0,0.43803338]
[1765671451693,9e-08,90320.0,90319.0,0.39387338]
[1765671459497,9e-08,90320.0,90319.0,0.03307338]
[1765671459809,9e-08,90320.0,90319.0,0.75467338]
[1765671462103,0.05977192,90327.0,90326.0,0.055229]
[1765671462304,0.01759,90342.0,90328.0,0.04416]
[1765671462305,0.05977192,90329.0,90328.0,0.04416]
[1765671462503,0.05621,90329.0,90328.0,0.40496]
[1765671462704,0.05621,90329.0,90328.0,0.3608]
[1765671463906,0.05621,90329.0,90328.0,0.3618]
[1765671465210,0.05621,90329.0,90328.0,0.40596]
[1765671465910,0.1159617,90329.0,90328.0,0.40596]
[1765671466109,0.05621,90329.0,90328.0,0.40596]
[1765671466301,0.11596155,90329.0,90328.0,0.40596]
[1765671470629,0.05621,90329.0,90328.0,0.40596]
[1765671470928,0.0738,90333.0,90332.0,0.0552282]
[1765671477932,0.0738,90333.0,90332.0,0.0110682]
[1765671480429,0.15327879,90333.0,90332.0,0.0110682]
[1765671483734,0.15327879,90333.0,90332.0,0.0552282]
[1765671483937,0.0738,90333.0,90332.0,0.0552282]
[1765671485740,0.0738,90333.0,90332.0,0.4160282]
[1765671494543,0.01759,90333.0,90332.0,0.4160282]
[1765671494937,0.04584,90333.0,90332.0,0.4160282]
[1765671495139,0.07405,90333.0,90332.0,0.4160282]
[1765671495845,0.09706879,90336.0,90335.0,0.0552278]
[1765671495846,0.01759,90336.0,90335.0,0.0552278]
[1765671496346,0.04584,90336.0,90335.0,0.0552278]
[1765671496645,0.07405,90336.0,90335.0,0.0552278]
[1765671505362,0.04584,90336.0,90335.0,0.0552278]
[1765671505948,0.07572,90336.0,90335.0,0.0552278]
[1765671508054,0.01759,90336.0,90335.0,0.0552278]
[1765671508855,0.04647,90336.0,90335.0,0.0552278]
[1765671509160,0.07604,90336.0,90335.0,0.0552278]
[1765671512960,0.04647,90336.0,90335.0,0.0552278]
[1765671513663,0.07604,90336.0,90335.0,0.0552278]
[1765671521571,0.07604,90336.0,90335.0,0.4160278]
[1765671535478,0.07604,90336.0,90335.0,0.0552278]
[1765671535680,0.07604,90336.0,90335.0,0.4160278]
[1765671540279,0.07947879,90349.0,90348.0,0.0552263]
[1765671540478,0.05635,90355.0,90354.0,0.0552255]
[1765671540870,0.05635,90355.0,90348.0,0.3608]
[1765671540871,0.05635,90349.0,90348.0,0.38288]
[1765671541072,0.05635,90349.0,90348.0,0.40496]
[1765671541272,0.05970899,90357.0,90356.0,0.04416]
[1765671541484,0.05970899,90359.0,90358.0,0.055225]
[1765671541681,0.01759,90364.0,90358.0,0.055225]
[1765671541682,0.11605899,90362.0,90361.0,0.04416]
[1765671541887,0.05635,90362.0,90361.0,0.04416]
[1765671543176,0.05635,90362.0,90361.0,0.04816]
[1765671543777,0.05635,90362.0,90361.0,0.05116]
[1765671545071,0.05635,90362.0,90361.0,0.007]
[1765671545681,0.05635,90362.0,90361.0,0.02908]
[1765671546290,0.05635,90362.0,90361.0,0.05116]
[1765671549986,0.05635,90362.0,90361.0,0.0622247]
[1765671551896,0.05635,90362.0,90361.0,0.0592247]
[1765671552192,0.05635,90362.0,90361.0,0.0552247]
[1765671556287,0.05635,90362.0,90361.0,0.0110647]
[1765671556680,0.05635,90362.0,90361.0,0.0331447]
[1765671556885,0.05635,90362.0,90361.0,0.0552247]
[1765671567400,0.11605397,90362.0,90361.0,0.0552247]
[1765671568293,0.05635,90362.0,90361.0,0.0552247]
[1765671577506,0.05635,90362.0,90361.0,0.0562247]
[1765671581298,0.0453,90364.0,90363.0,0.04416]
[1765671581499,0.07485,90364.0,90363.0,0.04416]
[1765671585111,0.05726,90362.0,90361.0,0.0331447]
[1765671585314,0.05726,90362.0,90361.0,0.0110647]
[1765671585517,0.05726,90362.0,90361.0,0.0331447]
[1765671585718,0.05726,90362.0,90361.0,0.0552247]
[1765671586311,0.05726,90362.0,90361.0,0.0562247]
[1765671597724,0.05726,90362.0,90361.0,0.4170247]
[1765671600536,0.05726,90362.0,90361.0,0.0562247]
[1765671602832,0.01759,90364.0,90363.0,0.04416]
[1765671603038,0.01759,90366.0,90365.0,0.04416]
[1765671603733,0.38848,90371.0,90370.0,0.0552236]
[1765671604238,0.41767,90371.0,90370.0,0.0552236]
[1765671604432,0.05687,90371.0,90370.0,0.0552236]
[1765671606339,0.11658778,90371.0,90370.0,0.0552236]
[1765671607330,0.07730778,90372.0,90371.0,0.04416]
[1765671607731,0.13417778,90372.0,90371.0,0.04416]
[1765671608327,0.07446,90372.0,90371.0,0.04416]
[1765671613940,0.05687,90371.0,90370.0,0.0110636]
[1765671614139,0.05687,90371.0,90370.0,0.0331436]
[1765671615243,0.05687,90371.0,90370.0,0.0552236]
[1765671615641,0.05687,90371.0,90370.0,0.0120636]
[1765671620549,0.05687,90371.0,90370.0,0.0341436]
[1765671624947,0.05687,90371.0,90370.0,0.0562236]
[1765671628358,0.11658778,90371.0,90370.0,0.0562236]
[1765671631364,0.05855,90362.0,90361.0,0.000166]
[1765671631963,0.05855,90362.0,90361.0,0.0112307]
[1765671632663,0.05855,90362.0,90361.0,0.0132307]
[1765671633664,0.05855,90362.0,90361.0,0.0142307]
[1765671636667,0.3608,90364.0,90338.0,0.03983619]
[1765671636668,0.05855,90344.0,90338.0,0.03983619]
[1765671636859,0.01531,90345.0,90338.0,0.0110675]
[1765671636860,0.07638,90339.0,90338.0,0.0110675]
[1765671637162,0.07638,90339.0,90338.0,0.0670475]
[1765671637764,0.13602526,90339.0,90338.0,0.0670475]
[1765671637964,0.07638,90339.0,90338.0,0.0670475]
[1765671638566,0.07638,90339.0,90338.0,0.0680475]
[1765671639364,0.07638,90339.0,90338.0,0.0690475]
[1765671661378,0.13598709,90339.0,90338.0,0.0690475]
[1765671662184,0.07638,90339.0,90338.0,0.0690475]
[1765671662978,0.05855,90339.0,90338.0,0.0690475]
[1765671666388,0.13818229,90339.0,90338.0,0.0690475]
[1765671666686,0.05855,90339.0,90338.0,0.0690475]
[1765671676082,0.02949,90339.0,90338.0,0.0690475]
[1765671676288,0.02744,90343.0,90342.0,0.07459]
[1765671676489,0.05604,90343.0,90342.0,0.07459]
[1765671684001,0.02744,90343.0,90342.0,0.07459]
[1765671684703,0.05471,90343.0,90342.0,0.07459]
[1765671685792,0.05471,90343.0,90342.0,0.0576]
[1765671690103,0.02744,90343.0,90342.0,0.07071]
[1765671690306,0.14639537,90348.0,90347.0,0.05895]
[1765671690707,0.14639537,90348.0,90347.0,0.0700164]
[1765671691604,0.14739537,90348.0,90347.0,0.0700164]
[1765671691906,0.05933569,90348.0,90347.0,0.0700164]
[1765671692505,0.06033569,90348.0,90347.0,0.0700164]
[1765671698809,0.05833569,90348.0,90347.0,0.0700164]
[1765671699011,0.05933569,90348.0,90347.0,0.0700164]
[1765671699617,0.05833569,90348.0,90347.0,0.0700164]
[1765671701119,0.00016569,90348.0,90347.0,0.0700164]
[1765671701308,0.05988615,90348.0,90347.0,0.0700164]
[1765671701504,0.00016569,90348.0,90347.0,0.0700164]
[1765671703220,0.00016569,90348.0,90347.0,0.0710164]
[1765671703922,0.00016569,90348.0,90347.0,0.0720164]
[1765671705329,0.00016569,90348.0,90347.0,0.0710164]
[1765671705534,0.00016569,90348.0,90347.0,0.0720164]
[1765671713640,0.00016569,90348.0,90347.0,0.7936164]
[1765671720944,9e-08,90348.0,90347.0,0.7936164]
[1765671721143,0.08934046,90368.0,90367.0,0.05854]
[1765671721446,0.05705,90368.0,90367.0,0.41934]
[1765671723350,0.05905,90368.0,90367.0,0.41934]
[1765671723748,0.06005,90368.0,90367.0,0.41934]
[1765671724346,0.05805,90368.0,90367.0,0.41934]
[1765671724541,0.05705,90368.0,90367.0,0.41934]
[1765671726754,0.02962,90368.0,90367.0,0.41934]
[1765671727248,0.08934046,90371.0,90370.0,0.05854]
[1765671727449,0.01736,90387.0,90371.0,0.0696034]
[1765671727450,0.05972046,90373.0,90371.0,0.0696034]
[1765671727652,0.08934046,90373.0,90372.0,0.07546]
[1765671727847,0.11677046,90373.0,90372.0,0.07546]
[1765671728151,0.05705,90373.0,90372.0,0.07546]
[1765671728451,0.11668893,90373.0,90372.0,0.07546]
[1765671729152,0.05705,90373.0,90372.0,0.07546]
[1765671729352,0.11669125,90373.0,90372.0,0.07546]
[1765671730051,0.11769125,90373.0,90372.0,0.07546]
[1765671730251,0.05805,90373.0,90372.0,0.07546]
[1765671731243,0.11769659,90373.0,90372.0,0.07546]
[1765671732447,0.001,90373.0,90372.0,0.07546]
[1765671732750,0.001,90373.0,90371.0,0.0110634]
[1765671732751,0.07441,90372.0,90371.0,0.0110634]
[1765671732952,0.07441,90372.0,90346.0,0.05969035]
[1765671732953,0.05705,90359.0,90352.0,0.0110657]
[1765671733140,0.41785,90359.0,90352.0,0.0110657]
[1765671733340,0.41785,90359.0,90352.0,0.58884]
[1765671734747,0.41885,90359.0,90354.0,0.0110655]
[1765671735153,0.41885,90359.0,90358.0,0.002166]
[1765671735750,0.41985,90359.0,90358.0,0.000166]
[1765671737547,0.41985,90359.0,90343.0,0.3608]
[1765671737548,0.05705,90334.0,90333.0,0.3718681]
[1765671737755,0.05705,90334.0,90333.0,0.0110681]
[1765671738057,0.05705,90330.0,90329.0,0.0110685]
[1765671738652,0.05705,90321.0,90320.0,0.000166]
[1765671738850,0.41785,90321.0,90320.0,0.000166]
[1765671740059,0.41785,90321.0,90320.0,0.004166]
[1765671740455,0.41785,90321.0,90320.0,0.007166]
[1765671740653,0.05705,90311.0,90310.0,0.3608]
[1765671740852,0.01736,90315.0,90303.0,0.3608]
[1765671741159,0.05705,90305.0,90304.0,0.0696116]
[1765671742252,0.05705,90305.0,90304.0,0.0706116]
[1765671742855,0.05705,90305.0,90304.0,0.0696116]
[1765671743659,0.05805,90305.0,90304.0,0.0696116]
[1765671744354,0.05705,90305.0,90304.0,0.0696116]
[1765671744562,0.05805,90305.0,90304.0,0.0696116]
[1765671744856,0.05905,90305.0,90304.0,0.0696116]
[1765671750060,0.05621,90299.0,90298.0,0.3608]
[1765671750266,0.06301,90296.0,90295.0,0.00016609]
[1765671750467,0.05621,90290.0,90270.0,0.10776857]
[1765671751154,0.05621,90290.0,90280.0,0.10776857]
[1765671751356,0.05621,90290.0,90280.0,0.10793466]
[1765671751854,0.05621,90290.0,90289.0,0.00109644]
[1765671753050,0.05921,90290.0,90289.0,0.00109644]
[1765671753749,0.06321,90290.0,90289.0,9.644e-05]
[1765671753955,0.06321,90290.0,90280.0,0.00016609]
[1765671754251,0.06321,90290.0,90266.0,0.0110762]
[1765671754252,0.05621,90257.0,90256.0,0.4297575]
[1765671755066,0.05630644,90257.0,90256.0,0.4297575]
[1765671755465,0.05630644,90257.0,90256.0,0.4307575]
[1765671756973,0.05630644,90257.0,90256.0,0.4327575]
[1765671760371,9.644e-05,90257.0,90256.0,0.4327575]
[1765671761765,0.02908644,90257.0,90256.0,0.4327575]
[1765671763671,0.05630644,90257.0,90256.0,0.4327575]
[1765671767572,0.02908644,90257.0,90256.0,0.4327575]
[1765671775385,9.644e-05,90257.0,90256.0,0.4327575]
[1765671775690,0.05960318,90276.0,90256.0,0.4327575]
[1765671775691,0.05574,90283.0,90282.0,0.0668643]
[1765671776181,0.05574,90283.0,90282.0,0.05579]
[1765671777076,0.05774,90283.0,90282.0,0.05579]
[1765671777383,0.05974,90283.0,90282.0,0.05579]
[1765671785381,0.0708142,90283.0,90282.0,0.05579]
[1765671785690,0.0708142,90283.0,90280.0,0.02743]
[1765671785691,0.05574,90281.0,90280.0,0.02743]
[1765671786188,0.05574,90281.0,90280.0,0.0385046]
[1765671786378,0.05574,90281.0,90280.0,0.0668646]
[1765671786583,0.05574,90279.0,90278.0,0.05579]
[1765671787491,0.0668153,90274.0,90273.0,0.00016619]
[1765671787692,0.4276153,90274.0,90273.0,0.00016619]
[1765671789282,0.4296153,90274.0,90273.0,0.00016619]
[1765671789482,0.50918518,90274.0,90273.0,0.00016619]
[1765671795298,0.4296153,90274.0,90273.0,0.00016619]
[1765671800590,0.4296153,90274.0,90273.0,0.05595619]
[1765671802401,0.4296153,90274.0,90273.0,0.02759619]
[1765671803012,0.4296153,90274.0,90273.0,0.05595619]
[1765671804103,0.4296153,90274.0,90273.0,0.02759619]
[1765671804704,0.4296153,90274.0,90273.0,0.00016619]
[1765671807306,0.4296153,90274.0,90273.0,0.03015619]
[1765671808805,0.41854,90274.0,90273.0,0.05971619]
[1765671811715,0.4981623,90274.0,90273.0,0.05971619]
[1765671812117,0.41854,90274.0,90273.0,0.05971619]
[1765671812819,0.05774,90274.0,90273.0,0.05971619]
[1765671814618,0.05774,90274.0,90273.0,0.00016619]
[1765671816122,0.05774,90274.0,90273.0,0.06805169]
[1765671832738,0.002,90274.0,90273.0,0.06805169]
[1765671836135,0.06174291,90274.0,90273.0,0.06805169]
[1765671838842,0.002,90274.0,90273.0,0.06805169]
[1765671840634,0.002,90274.0,90273.0,0.42885169]
[1765671841749,0.06018,90274.0,90273.0,0.41777619]
[1765671841947,0.06018,90274.0,90273.0,0.02741619]
[1765671842246,0.06018,90274.0,90273.0,0.00016619]
[1765671844037,0.13987695,90274.0,90273.0,0.00016619]
[1765671850042,0.06018,90274.0,90273.0,0.05757619]
[1765671850842,0.03124,90274.0,90273.0,0.05757619]
[1765671851048,0.002,90274.0,90273.0,0.05757619]
[1765671851247,0.03124,90274.0,90273.0,0.05757619]
[1765671851442,0.06018,90274.0,90273.0,0.05757619]
[1765671878566,0.06018,90274.0,90273.0,0.02959619]
[1765671878769,0.06018,90274.0,90273.0,0.00016619]
[1765671878958,0.42098,90274.0,90273.0,0.00016619]
[1765671879372,0.42098,90274.0,90251.0,0.1189]
[1765671879373,0.05711,90250.0,90249.0,0.07366]
[1765671880572,0.05711,90250.0,90249.0,0.07666]
[1765671881774,0.05711,90250.0,90249.0,0.07966]
[1765671884768,0.05711,90250.0,90249.0,0.06325]
[1765671886471,0.05711,90250.0,90249.0,0.006]
[1765671889294,0.05711,90248.0,90247.0,0.0110786]
[1765671891783,0.05711,90248.0,90247.0,0.0120786]
[1765671892469,0.05711,90248.0,90247.0,0.0130786]
[1765671894382,0.06702,90248.0,90247.0,0.0130786]
[1765671894776,0.05711,90248.0,90247.0,0.0703286]
[1765671899497,0.0567,90251.0,90250.0,0.0682083]
[1765671900805,0.0567,90251.0,90250.0,0.0692083]
[1765671901303,0.11644028,90251.0,90250.0,0.0692083]
[1765671901807,0.0567,90251.0,90250.0,0.0692083]
[1765671902104,0.11644028,90251.0,90250.0,0.0692083]
[1765671902406,0.05974028,90251.0,90250.0,0.0692083]
[1765671902593,0.00016619,90259.0,90258.0,0.05713]
[1765671902789,0.00016619,90259.0,90258.0,0.41793]
[1765671904604,0.00116619,90259.0,90258.0,0.41793]
[1765671911394,0.00116619,90259.0,90258.0,0.05713]
[1765671919410,0.00116619,90259.0,90258.0,0.41793]
[1765671922213,0.00116619,90259.0,90258.0,0.43469]
[1765671926921,0.05974028,90268.0,90266.0,0.0548]
[1765671927111,0.05974028,90269.0,90268.0,0.0658761]
[1765671928123,0.1342337,90277.0,90276.0,0.0169]
[1765671928421,0.1342337,90277.0,90276.0,0.0717]
[1765671929418,0.1342337,90277.0,90276.0,0.0827751]
[1765671930421,0.0836537,90277.0,90276.0,0.0827751]
[1765671930624,0.06372381,90277.0,90276.0,0.0827751]
[1765671933718,0.004,90277.0,90276.0,0.0827751]
[1765671937527,0.03103,90277.0,90276.0,0.0827751]
[1765671939620,0.03103,90277.0,90276.0,0.4435751]
[1765671940019,0.004,90277.0,90276.0,0.4435751]
[1765671943132,0.05858,90277.0,90276.0,0.4435751]
[1765671943330,0.03103,90277.0,90276.0,0.4435751]
[1765671943716,0.004,90277.0,90276.0,0.4435751]
[1765671948435,0.004,90277.0,90276.0,0.0827751]
[1765671948637,0.004,90277.0,90276.0,0.4435751]
[1765671949031,0.004,90277.0,90276.0,0.0827751]
[1765671949222,0.004,90277.0,90276.0,0.4435751]
[1765671949428,0.03103,90277.0,90276.0,0.4435751]
[1765671949737,0.004,90277.0,90276.0,0.4435751]
[1765671952824,0.03103,90277.0,90276.0,0.4435751]
[1765671953739,0.05858,90277.0,90276.0,0.4435751]
[1765671955125,0.11830381,90277.0,90276.0,0.4435751]
[1765671955330,0.01331,90276.0,90269.0,0.0110759]
[1765671955530,0.05764,90266.0,90265.0,0.5875863]
[1765671955732,0.05764,90266.0,90265.0,0.6155063]
[1765671957138,0.05864,90266.0,90265.0,0.6155063]
[1765671960837,0.001,90266.0,90265.0,0.6155063]
[1765671962038,0.05969902,90267.0,90266.0,0.05763]
[1765671962239,0.05969902,90268.0,90267.0,0.0687062]
[1765671963041,0.1372937,90277.0,90276.0,0.0850651]
[1765671963537,0.13722016,90277.0,90276.0,0.0850651]
[1765671963940,0.05764,90277.0,90276.0,0.0850651]
[1765671964237,0.13722016,90277.0,90276.0,0.0850651]
[1765671964428,0.05764,90277.0,90276.0,0.0850651]
[1765671965740,0.05964,90277.0,90276.0,0.0850651]
[1765671966135,0.06164,90277.0,90276.0,0.0850651]
[1765671966443,0.05964,90277.0,90276.0,0.0850651]
[1765671966633,0.06164,90277.0,90276.0,0.0850651]
[1765671975648,0.05764,90273.0,90272.0,0.0687055]
[1765671975848,0.11733768,90273.0,90272.0,0.0687055]
[1765671976355,0.05764,90273.0,90272.0,0.0687055]
[1765671976744,0.05864,90273.0,90272.0,0.0687055]
[1765671977246,0.05864,90273.0,90272.0,0.0850655]
[1765671978147,0.06064,90273.0,90272.0,0.0850655]
[1765671978752,0.12034459,90273.0,90272.0,0.0850655]
[1765671980355,0.003,90273.0,90272.0,0.4458655]
[1765671989364,0.003,90273.0,90272.0,0.8066655]
[1765671989557,0.0512668,90278.0,90276.0,0.0819651]
[1765671989766,0.07958016,90293.0,90292.0,0.04347]
[1765671989963,0.13784016,90293.0,90292.0,0.07089]
[1765671990465,0.05826,90293.0,90292.0,0.07089]
[1765671991364,0.05826,90293.0,90292.0,0.43169]
[1765671991569,0.02953,90293.0,90292.0,0.43169]
[1765671991765,0.003,90293.0,90292.0,0.43169]
[1765671992169,0.00016619,90302.0,90301.0,0.065702]
[1765671992373,9e-08,90302.0,90301.0,0.426502]
[1765671992971,0.13784016,90320.0,90319.0,0.0656998]
[1765671993367,0.05826,90320.0,90319.0,0.0656998]
[1765671994776,0.06026,90320.0,90319.0,0.0656998]
[1765672007687,0.002,90320.0,90319.0,0.0656998]
[1765672025999,0.002,90320.0,90319.0,0.4264998]
[1765672027998,0.002,90320.0,90319.0,0.0656998]
[1765672028199,0.002,90320.0,90319.0,0.4264998]
[1765672034804,0.05892,90320.0,90319.0,0.4264998]
[1765672034999,0.05892,90320.0,90319.0,0.38801]
[1765672035206,0.05692,90318.0,90317.0,0.0110699]
[1765672035801,0.05692,90318.0,90317.0,0.0401999]